bitfinex/quotes_ETHUSD_20220310
["timestamp","ask_amount","ask_price","bid_price","bid_amount"]
[1646884049212,0.55688655,2669.1,2668.9,0.09910087]
[1646884049456,0.55991327,2669.1,2668.9,0.09910087]
[1646884050362,0.55688655,2669.1,2668.9,0.09910087]
[1646884050662,0.55991327,2669.1,2668.9,0.09910087]
[1646884051267,0.55991327,2669.1,2668.9,0.12826887]
[1646884051662,0.55688655,2669.1,2668.9,0.12826887]
[1646884051863,0.55991327,2669.1,2668.9,0.12826887]
[1646884052864,0.55688655,2669.1,2668.9,0.12826887]
[1646884053064,0.55991327,2669.1,2668.9,0.12826887]
[1646884053908,0.55688655,2669.1,2668.9,0.12826887]
[1646884054304,0.55983542,2669.1,2668.9,0.12826887]
[1646884055104,0.55983542,2669.1,2669.0,0.029168]
[1646884055307,0.55688655,2669.1,2669.0,0.058336]
[1646884055505,0.55983542,2669.1,2669.0,1.61241124]
[1646884055909,0.00294887,2669.1,2669.0,1.61241124]
[1646884056310,0.57194506,2669.2,2669.0,1.61241124]
[1646884056515,0.57194506,2669.2,2669.1,0.0833953]
[1646884056711,0.57489393,2669.2,2669.1,0.1125633]
[1646884056956,0.57489393,2669.2,2669.1,1.66660032]
[1646884057559,0.57194506,2669.2,2669.1,1.66660032]
[1646884057858,0.57194506,2669.2,2669.1,0.1125633]
[1646884058459,0.57194506,2669.2,2669.1,0.029168]
[1646884060720,0.57194506,2669.2,2669.1,1.5832267]
[1646884061515,0.57194506,2669.2,2669.0,0.11021949]
[1646884061720,0.57194506,2669.2,2668.6,0.10416306]
[1646884061721,2.50940506,2669.2,2668.6,0.10416306]
[1646884061915,2.50940506,2669.2,2668.7,1.55421386]
[1646884062114,3.50940506,2669.2,2668.8,0.08384278]
[1646884062315,3.50940506,2669.2,2668.6,0.029168]
[1646884062516,2.50940506,2669.2,2668.6,0.029168]
[1646884062717,0.00302672,2669.1,2668.6,0.029168]
[1646884063116,0.00302672,2669.1,2668.6,0.1084705]
[1646884063315,0.00302672,2669.1,2668.7,1.55428341]
[1646884063516,2.50940506,2669.2,2668.8,0.08195601]
[1646884063517,1.57194506,2669.2,2668.8,0.08195601]
[1646884063716,0.57194506,2669.2,2668.8,0.11112401]
[1646884063916,0.00302673,2669.0,2668.9,0.029168]
[1646884064115,0.00302673,2669.0,2668.8,0.029168]
[1646884064318,0.00302673,2669.0,2668.9,1.55419265]
[1646884064557,0.00302673,2669.0,2668.9,1.64265037]
[1646884064755,0.57194506,2669.2,2668.9,1.64265037]
[1646884064955,0.57194506,2669.2,2668.9,0.08845772]
[1646884065356,0.00302672,2669.1,2668.9,0.08845772]
[1646884065958,0.57194506,2669.2,2668.9,0.08845772]
[1646884066158,0.00301507,2669.1,2668.9,0.08845772]
[1646884067162,0.57194506,2669.2,2668.9,0.08845772]
[1646884067565,0.00301507,2669.1,2668.9,0.08845772]
[1646884067962,0.00301507,2669.1,2668.7,0.029168]
[1646884068218,0.00301507,2669.1,2668.8,1.55421327]
[1646884068406,0.57194506,2669.2,2668.7,0.029168]
[1646884068606,0.00301507,2669.0,2668.8,1.55423571]
[1646884068805,0.00301507,2669.0,2668.5,0.00600837]
[1646884069008,0.00301507,2669.0,2668.7,0.08510864]
[1646884069206,0.00301507,2669.0,2668.5,0.10936538]
[1646884069406,1.87831507,2669.0,2668.5,0.00600837]
[1646884069611,1.8753,2669.0,2668.7,0.08209106]
[1646884069806,2.1753,2669.0,2668.7,0.08117177]
[1646884070007,0.94063365,2668.9,2668.5,3.61944092]
[1646884070209,0.00300365,2668.9,2668.6,1.65853866]
[1646884070410,0.00300365,2668.9,2668.7,1.62680508]
[1646884070607,0.00300365,2668.9,2668.8,1.62498822]
[1646884070811,0.56196433,2669.2,2668.8,1.42258822]
[1646884071011,0.56196433,2669.2,2668.9,0.07188262]
[1646884071212,0.56196433,2669.2,2668.7,0.029168]
[1646884071411,1.49945433,2669.2,2668.7,0.029168]
[1646884072262,0.00300364,2669.1,2668.7,0.029168]
[1646884072458,1.87526,2669.0,2668.7,0.029168]
[1646884073260,1.87526,2669.0,2668.6,0.11204171]
[1646884073459,1.87826616,2669.0,2668.6,0.11204171]
[1646884074060,0.00300616,2669.0,2668.6,0.11204171]
[1646884074462,0.93762,2669.1,2668.6,0.11204171]
[1646884074865,0.00300616,2668.9,2668.6,0.11204171]
[1646884075714,0.93762,2669.1,2668.6,0.11204171]
[1646884075911,0.00300616,2668.9,2668.6,0.11204171]
[1646884077012,0.93762,2669.1,2668.6,0.11204171]
[1646884077214,0.00300561,2668.9,2668.8,0.93742]
[1646884078012,0.56196433,2669.2,2668.8,0.93742]
[1646884078412,0.00300561,2669.0,2668.8,0.93742]
[1646884079213,0.56196433,2669.2,2668.8,0.93742]
[1646884079456,0.00300561,2669.0,2668.8,0.93742]
[1646884080354,0.56196433,2669.2,2668.8,0.93742]
[1646884080556,0.56196433,2669.2,2668.8,0.029168]
[1646884080760,0.00300573,2669.0,2668.8,0.029168]
[1646884081057,0.00300573,2669.0,2668.7,0.029168]
[1646884081760,0.93752,2669.1,2668.7,0.019168]
[1646884081958,0.00300573,2669.0,2668.7,0.019168]
[1646884082759,0.56196433,2669.2,2668.7,0.019168]
[1646884083221,0.00300573,2669.0,2668.7,0.019168]
[1646884084011,0.56196433,2669.2,2668.7,0.019168]
[1646884084217,0.0030057,2669.0,2668.7,0.019168]
[1646884084815,0.53207003,2669.2,2668.7,0.019168]
[1646884086620,0.53207003,2669.2,2668.8,0.029168]
[1646884086821,0.0029101,2669.1,2668.9,0.966548]
[1646884087460,0.0029101,2669.1,2669.0,0.029168]
[1646884087762,0.53207003,2669.2,2669.1,0.07656139]
[1646884087965,3.23051203,2669.6,2669.1,0.07656139]
[1646884087966,3.23051203,2669.6,2669.1,0.89833416]
[1646884088161,3.23051203,2669.6,2669.2,4.43716]
[1646884088361,0.56726229,2669.6,2669.3,0.07535236]
[1646884089171,0.57017173,2669.6,2669.3,1.94963236]
[1646884089359,0.57017173,2669.6,2669.5,0.07949146]
[1646884089960,0.56726229,2669.6,2669.5,0.07949146]
[1646884091618,0.56726229,2669.6,2669.2,0.08673094]
[1646884091820,1.50466229,2669.6,2669.2,0.08673094]
[1646884092017,1.50466229,2669.6,2668.9,0.029168]
[1646884092216,1.50466229,2669.6,2669.0,1.58328736]
[1646884092417,1.50466229,2669.6,2669.1,1.63166191]
[1646884092619,1.50466229,2669.6,2669.2,0.07480785]
[1646884092816,0.00302826,2669.4,2669.0,0.029168]
[1646884093019,0.00302826,2669.4,2669.1,1.55413285]
[1646884093218,0.94047826,2669.4,2669.2,0.0852159]
[1646884093618,0.93745,2669.4,2669.0,0.029168]
[1646884093817,0.93745,2669.4,2668.9,0.11376252]
[1646884094018,0.94047825,2669.4,2669.0,1.55407987]
[1646884094219,0.94047825,2669.4,2669.1,0.07707062]
[1646884094460,0.94047825,2669.4,2668.8,0.09044108]
[1646884094659,0.94047825,2669.4,2668.9,1.55415529]
[1646884094857,0.93745,2669.4,2668.9,0.08678672]
[1646884095057,1.31245,2669.4,2668.6,0.07272972]
[1646884095257,0.94047826,2669.4,2668.9,0.06882789]
[1646884095862,0.94047826,2669.4,2669.1,0.08251026]
[1646884096063,0.93745,2669.4,2668.9,0.07538318]
[1646884096363,0.00302826,2669.3,2669.1,0.08612551]
[1646884096762,0.00302826,2669.3,2668.9,0.07890096]
[1646884097062,0.00302826,2669.3,2669.1,0.08696904]
[1646884097262,0.93745,2669.4,2668.9,0.09024742]
[1646884097464,0.93745,2669.4,2668.8,1.01561755]
[1646884097465,0.93745,2669.4,2669.1,0.07461829]
[1646884097664,0.00302826,2669.2,2668.9,0.07587652]
[1646884097864,0.00302826,2669.2,2669.1,0.07108152]
[1646884098064,0.00302826,2669.2,2668.9,0.08002056]
[1646884098312,0.00302826,2669.2,2669.1,0.07090909]
[1646884098509,0.93745,2669.4,2669.1,0.07090909]
[1646884098715,0.00302826,2669.3,2668.9,0.07875238]
[1646884098904,0.00302826,2669.3,2669.0,1.55412807]
[1646884099105,0.00302826,2669.3,2669.1,0.08110976]
[1646884099504,0.00302826,2669.3,2668.9,0.0803308]
[1646884099705,0.78745,2669.4,2669.0,1.55409332]
[1646884099906,0.00301502,2669.3,2669.1,0.07392221]
[1646884100915,0.78745,2669.4,2669.1,0.07392221]
[1646884101110,0.00301502,2669.3,2669.1,0.07392221]
[1646884101315,0.00301502,2669.3,2669.2,1.55399534]
[1646884102260,0.56726229,2669.6,2669.3,0.08096712]
[1646884102459,0.00301502,2669.4,2669.3,0.08096712]
[1646884103059,0.00301502,2669.4,2668.9,0.08925301]
[1646884103259,0.56726229,2669.6,2669.0,1.5539743]
[1646884103463,0.56726229,2669.6,2669.1,0.07310362]
[1646884103759,0.56726229,2669.6,2668.9,0.07172884]
[1646884103760,0.00302825,2669.5,2668.9,0.07172884]
[1646884103960,0.00302825,2669.5,2669.0,1.55402256]
[1646884104162,0.00302825,2669.5,2669.1,0.07117578]
[1646884104559,1.375,2669.5,2668.6,0.07686414]
[1646884104759,0.00302826,2669.4,2668.8,0.09029958]
[1646884105161,0.93744,2669.3,2668.8,0.09029958]
[1646884105461,0.93744,2669.3,2668.6,0.06924036]
[1646884105720,0.93744,2669.3,2668.5,4.11780837]
[1646884105721,1.86044536,2669.2,2668.7,1.55435567]
[1646884105911,1.09091881,2669.0,2668.5,0.00600837]
[1646884106115,1.12008681,2669.0,2668.5,0.00600837]
[1646884106312,3.0,2668.6,2668.5,0.00600837]
[1646884106513,3.0,2668.6,2667.2,0.69431923]
[1646884106514,3.8,2668.4,2667.2,0.69431923]
[1646884106714,3.8,2668.4,2667.3,1.55473529]
[1646884106715,3.829168,2667.8,2667.3,1.55473529]
[1646884107011,0.9383649,2667.3,2666.5,0.07030592]
[1646884107311,0.9383649,2667.3,2666.3,0.92872212]
[1646884107312,1.10168576,2667.2,2666.3,0.92872212]
[1646884107511,1.10168576,2667.2,2666.2,0.06699557]
[1646884107512,0.05122685,2667.1,2666.2,0.06699557]
[1646884107712,0.04881716,2666.9,2666.1,0.92872212]
[1646884107912,0.04881716,2666.9,2666.0,0.92872212]
[1646884107913,3.42381716,2666.9,2666.0,0.92872212]
[1646884108114,0.9386029,2666.6,2665.8,4.02193775]
[1646884108312,0.9386029,2666.6,2665.8,3.09321563]
[1646884108510,1.72269313,2666.8,2665.8,0.06694322]
[1646884108717,0.05570881,2666.7,2665.8,0.06694322]
[1646884108912,0.05441898,2666.7,2665.8,0.06694322]
[1646884109110,0.93834,2666.8,2665.8,0.06694322]
[1646884109310,0.93834,2666.8,2665.8,0.44194322]
[1646884110760,0.93834,2666.8,2665.8,0.44353412]
[1646884110961,0.93834,2666.8,2665.9,0.9384]
[1646884111161,0.93834,2666.8,2666.0,0.07432196]
[1646884112668,0.93834,2666.8,2665.9,0.00159084]
[1646884112669,0.0482045,2666.7,2665.9,0.00159084]
[1646884112864,0.0482045,2666.7,2665.7,0.07096034]
[1646884112865,0.93866,2666.5,2665.7,0.07096034]
[1646884113307,0.93866,2666.5,2665.9,0.00159084]
[1646884114105,0.93866,2666.5,2665.7,0.93665943]
[1646884114307,0.93866,2666.5,2665.7,0.93825039]
[1646884115108,0.967828,2666.5,2665.7,0.93825039]
[1646884115308,0.967828,2666.5,2665.7,0.93665943]
[1646884115507,0.967828,2666.5,2665.7,1.87510943]
[1646884115708,2.906478,2666.6,2666.5,0.69139354]
[1646884116113,1.906478,2666.6,2666.5,0.69139354]
[1646884116310,2.906478,2666.6,2666.5,0.69139354]
[1646884116515,0.029168,2666.6,2666.5,0.69139354]
[1646884116711,1.029168,2666.6,2666.5,0.69139354]
[1646884116954,0.029168,2666.6,2666.5,0.69139354]
[1646884119957,0.9866845,2666.7,2666.5,0.69139354]
[1646884120160,0.93848,2666.7,2666.5,0.69139354]
[1646884123127,0.029168,2666.6,2666.5,0.69139354]
[1646884129408,3.529168,2666.6,2666.5,0.69139354]
[1646884129806,1.029168,2666.6,2666.5,0.69139354]
[1646884130107,4.529168,2666.6,2666.5,0.69139354]
[1646884131111,0.93848,2666.7,2666.5,0.69139354]
[1646884132864,0.029168,2666.9,2666.5,0.69139354]
[1646884134069,1.867408,2667.0,2666.5,0.69139354]
[1646884134271,0.867408,2667.0,2666.5,0.69139354]
[1646884134469,3.5,2666.9,2666.5,0.69139354]
[1646884134869,0.05278641,2666.8,2666.5,0.69139354]
[1646884135171,0.93838,2666.7,2666.5,0.69139354]
[1646884135814,1.0,2666.9,2666.5,0.69139354]
[1646884136215,0.04517432,2667.0,2666.5,0.69139354]
[1646884136416,0.93838,2666.7,2666.5,0.69139354]
[1646884138117,0.93838,2666.7,2666.6,0.07909214]
[1646884138717,0.83838,2666.7,2666.6,0.07909214]
[1646884139018,0.83838,2666.7,2666.5,0.69139354]
[1646884141868,1.06209027,2666.6,2666.5,0.69139354]
[1646884142068,3.5,2666.6,2666.5,0.69139354]
[1646884142270,0.83838,2666.7,2666.5,0.69139354]
[1646884143316,1.7769264,2666.7,2666.5,0.69139354]
[1646884143715,2.7769264,2666.7,2666.5,0.69139354]
[1646884143916,6.2769264,2666.7,2666.5,0.59139354]
[1646884144118,3.5,2666.6,2666.5,0.59139354]
[1646884144317,4.945,2666.6,2666.5,0.59139354]
[1646884144718,4.945,2666.6,2666.1,0.00159072]
[1646884144719,3.7,2666.5,2666.1,0.00159072]
[1646884144921,1.0,2666.2,2666.1,0.00159072]
[1646884145135,4.945,2666.2,2666.1,0.00159072]
[1646884145320,4.945,2666.2,2665.5,0.08648861]
[1646884145321,5.945,2666.2,2665.5,0.08648861]
[1646884145720,5.945,2666.2,2665.6,0.00159099]
[1646884146121,1.03233959,2665.9,2665.6,0.00159099]
[1646884146521,4.945,2666.2,2665.4,1.55600042]
[1646884146725,0.93874,2666.0,2665.4,1.55600042]
[1646884146959,0.93874,2666.0,2665.5,0.07770018]
[1646884147163,0.93874,2666.0,2665.6,1.55600042]
[1646884147364,0.93874,2666.0,2665.7,1.64121271]
[1646884147562,0.93874,2666.0,2665.8,1.55600042]
[1646884147764,0.93874,2666.0,2665.4,0.08312229]
[1646884147765,0.93874,2666.0,2665.1,1.1964]
[1646884147964,0.93874,2666.0,2665.2,1.45597261]
[1646884148163,4.43874,2666.0,2665.3,0.0015912]
[1646884148564,5.43874,2666.0,2665.3,0.0015912]
[1646884149065,5.43874,2666.0,2665.1,0.08097595]
[1646884149265,5.43874,2666.0,2665.1,0.08853455]
[1646884149466,5.43874,2666.0,2665.1,0.77916873]
[1646884149670,5.43874,2666.0,2665.2,0.07622262]
[1646884150465,5.43874,2666.0,2665.2,0.7668568]
[1646884150913,1.93874,2666.0,2665.2,0.7668568]
[1646884151313,0.93874,2666.0,2665.2,0.7668568]
[1646884151517,0.93874,2666.0,2665.3,0.69063418]
[1646884152714,1.31374,2666.0,2665.3,0.69063418]
[1646884152917,0.93875,2665.8,2665.3,0.69063418]
[1646884153616,0.93875,2665.8,2665.1,0.0075586]
[1646884153817,0.93875,2665.8,2665.0,0.07925998]
[1646884154017,1.31375,2665.8,2665.0,0.08681886]
[1646884154218,0.93901,2665.5,2665.0,0.08681886]
[1646884154475,1.82,2665.4,2664.6,0.08514072]
[1646884154672,0.87564597,2664.9,2664.4,0.07515731]
[1646884154876,0.87564597,2664.9,2664.2,0.10100981]
[1646884155078,0.87564597,2664.9,2664.2,0.07184181]
[1646884155877,5.2018439,2665.0,2664.2,0.07184181]
[1646884155878,4.41713043,2665.0,2664.2,0.07184181]
[1646884156076,0.93922,2664.8,2664.2,0.07184181]
[1646884156275,0.93922,2664.8,2664.0,0.08933488]
[1646884157480,0.93924,2664.6,2664.0,0.08933488]
[1646884160925,1.0,2664.7,2664.0,0.08933488]
[1646884161323,0.55579326,2664.8,2664.0,0.08933488]
[1646884161523,0.55579326,2664.8,2663.9,0.84483934]
[1646884161729,0.55579326,2664.8,2664.0,0.0740805]
[1646884162367,0.93907,2664.7,2664.0,0.0740805]
[1646884163371,0.93907,2664.7,2663.9,0.84483934]
[1646884163571,0.93914,2664.5,2663.9,0.84483934]
[1646884165373,0.93914,2664.5,2663.7,0.00641111]
[1646884165853,0.93914,2664.5,2663.6,6.5516702]
[1646884166057,0.93914,2664.5,2663.6,3.05808155]
[1646884166456,0.93929,2664.2,2663.7,1.09107565]
[1646884166654,0.93929,2664.2,2663.6,0.07428155]
[1646884166855,0.06085076,2664.1,2663.6,0.00641135]
[1646884167054,0.06085076,2664.1,2663.3,5.263368]
[1646884167456,0.06085076,2664.1,2663.4,0.0017649]
[1646884167854,0.93937,2663.9,2663.4,0.0017649]
[1646884168056,0.92885208,2663.9,2663.4,1.55888624]
[1646884168255,0.06272441,2663.8,2663.4,1.55712134]
[1646884171877,0.06272441,2663.8,2663.5,3.5]
[1646884172075,0.05457191,2664.0,2663.6,1.55712134]
[1646884172274,0.05457191,2664.0,2663.7,1.55712134]
[1646884172474,0.05457191,2664.0,2663.3,0.029168]
[1646884172676,0.05457191,2664.0,2663.4,1.55693732]
[1646884172975,0.552842,2664.1,2663.7,1.01102433]
[1646884173214,0.93931,2664.0,2663.7,1.01102433]
[1646884173418,0.93931,2664.0,2663.3,3.904168]
[1646884173620,0.93931,2664.0,2663.4,5.05689901]
[1646884173821,0.93931,2664.0,2663.5,1.55689901]
[1646884174120,1.00299847,2664.0,2663.3,0.029168]
[1646884174321,1.00299847,2664.0,2662.9,4.707568]
[1646884174322,0.05569167,2663.9,2662.9,4.707568]
[1646884174522,0.93937,2663.8,2663.2,0.00720484]
[1646884174918,0.93937,2663.8,2663.3,1.55717885]
[1646884175725,0.93937,2663.8,2663.1,1.12011391]
[1646884175924,1.03390133,2664.0,2663.9,0.66591043]
[1646884176825,0.04538989,2664.0,2663.9,0.66591043]
[1646884177066,0.98917435,2663.8,2663.4,0.00720417]
[1646884177268,0.05363302,2663.7,2663.4,0.00720417]
[1646884177866,0.05363302,2663.7,2663.2,0.029168]
[1646884178666,1.678242,2664.1,2663.3,1.55715233]
[1646884178667,2.617492,2664.1,2663.3,1.55715233]
[1646884178866,2.617492,2664.1,2663.5,1.07133237]
[1646884179079,2.492092,2664.1,2663.5,1.07133237]
[1646884179272,1.492092,2664.1,2663.5,1.07133237]
[1646884180074,1.87886,2663.9,2663.5,1.07133237]
[1646884180923,1.87886,2663.9,2663.3,0.00720457]
[1646884181127,2.81835,2663.9,2663.4,1.55717819]
[1646884181325,2.81835,2663.9,2663.3,0.00720457]
[1646884181326,3.81835,2663.9,2663.3,0.00720457]
[1646884181523,3.81835,2663.9,2662.9,0.029168]
[1646884181729,0.93956,2663.6,2663.1,0.00720512]
[1646884181924,0.93956,2663.6,2663.2,1.55729479]
[1646884185270,1.87915,2663.6,2663.2,1.55729479]
[1646884185471,1.87915,2663.5,2662.9,0.03637365]
[1646884185669,1.87915,2663.5,2663.0,1.55750075]
[1646884185670,0.04435123,2663.4,2663.0,1.55750075]
[1646884186776,0.93957,2663.3,2663.0,1.55750075]
[1646884187972,0.04195248,2663.2,2663.0,1.55750075]
[1646884190830,0.04195248,2663.2,2663.0,1.50750075]
[1646884191031,0.56392925,2663.4,2662.9,0.029168]
[1646884191233,0.56392925,2663.4,2662.5,6.68745731]
[1646884191433,0.56392925,2663.4,2662.6,0.40978904]
[1646884191634,0.56392925,2663.4,2662.9,0.029168]
[1646884192677,0.56392925,2663.4,2663.1,0.07142818]
[1646884192881,0.56392925,2663.4,2662.9,0.029168]
[1646884195920,1.87905,2663.6,2662.9,0.029168]
[1646884196521,0.93944,2663.5,2662.9,0.029168]
[1646884198723,0.04562237,2663.4,2662.9,0.029168]
[1646884200589,0.93944,2663.5,2662.9,0.029168]
[1646884202304,0.05256708,2663.4,2662.9,0.029168]
[1646884203719,0.93936,2663.8,2662.9,0.029168]
[1646884203918,0.42925758,2663.7,2662.9,0.029168]
[1646884204119,0.04454212,2663.6,2662.9,0.029168]
[1646884205219,0.04454212,2663.6,2663.0,0.93929]
[1646884205620,0.93936,2663.8,2663.1,0.07065828]
[1646884205825,0.93936,2663.8,2663.1,0.09982628]
[1646884206025,0.93936,2663.8,2663.1,0.029168]
[1646884206823,0.93936,2663.8,2663.3,1.07888714]
[1646884207069,0.93936,2663.8,2663.1,0.029168]
[1646884208372,7.169942,2664.1,2663.4,0.029168]
[1646884208373,0.552842,2664.1,2663.4,0.029168]
[1646884208570,0.552842,2664.1,2663.6,0.029168]
[1646884209672,1.492082,2664.1,2663.6,0.329168]
[1646884209871,1.492082,2664.1,2663.6,0.029168]
[1646884210472,2.66651465,2664.1,2663.4,0.029168]
[1646884210719,1.492082,2664.1,2663.4,0.029168]
[1646884210924,1.492082,2664.1,2663.5,1.55727634]
[1646884211724,1.5342727,2664.1,2663.5,1.55727634]
[1646884212124,1.492082,2664.1,2663.5,1.55727634]
[1646884212328,3.54612381,2664.0,2663.5,1.55727634]
[1646884212523,0.04628342,2663.9,2663.5,1.55727634]
[1646884212727,0.93946,2663.8,2663.5,1.55727634]
[1646884213022,0.93946,2663.8,2663.3,0.01258107]
[1646884213023,0.04209612,2663.7,2663.3,0.01258107]
[1646884213222,0.04209612,2663.7,2663.4,1.55735273]
[1646884214024,0.04617352,2664.0,2663.4,1.55735273]
[1646884214224,0.04617352,2664.0,2663.5,1.55735273]
[1646884216278,0.04617352,2664.0,2663.5,1.55589414]
[1646884217278,0.552842,2664.1,2663.7,1.04944537]
[1646884217579,0.552842,2664.1,2663.8,0.11349244]
[1646884218925,0.552842,2664.1,2663.8,0.029168]
[1646884223073,0.552842,2664.1,2663.9,0.029168]
[1646884223874,0.552842,2664.1,2664.0,0.00652557]
[1646884224977,0.552842,2664.1,2664.0,0.03569357]
[1646884226825,0.88936526,2664.8,2664.1,2.59747599]
[1646884227027,0.05120961,2665.0,2664.5,0.029168]
[1646884227229,0.19576582,2665.8,2664.9,0.029168]
[1646884227428,0.19576582,2665.8,2665.7,0.029168]
[1646884227628,0.57078524,2665.9,2665.7,0.029168]
[1646884227826,1.16851758,2666.4,2665.8,0.029168]
[1646884228028,1.16851758,2666.4,2666.0,0.029168]
[1646884228332,0.04619601,2666.3,2665.9,0.029168]
[1646884228529,0.04619601,2666.3,2665.8,0.029168]
[1646884229127,1.16094995,2666.0,2665.8,0.029168]
[1646884229485,1.16094995,2666.0,2665.7,0.029168]
[1646884230177,0.98470601,2666.3,2665.7,0.029168]
[1646884230377,0.98470601,2666.3,2665.7,0.058336]
[1646884230578,0.93851,2666.3,2665.7,0.058336]
[1646884230778,0.04572218,2666.2,2665.7,0.058336]
[1646884232481,0.04572218,2666.2,2665.8,0.029168]
[1646884232680,0.04572218,2666.2,2665.5,0.029168]
[1646884232880,1.78031,2666.0,2665.4,0.00465839]
[1646884233080,0.04447637,2665.9,2665.3,0.029168]
[1646884233522,1.23199274,2665.9,2665.3,0.03382656]
[1646884233719,1.18751637,2665.9,2665.3,0.03382656]
[1646884233920,0.05119917,2665.8,2665.4,0.029168]
[1646884234120,0.05119917,2665.8,2665.5,0.029168]
[1646884235519,0.05119917,2665.8,2665.7,0.029168]
[1646884235719,0.05119917,2665.8,2665.6,0.058336]
[1646884236128,0.98272227,2666.0,2665.6,0.058336]
[1646884236324,0.93852,2666.2,2665.7,0.029168]
[1646884236522,0.93852,2666.2,2665.8,0.029168]
[1646884238975,0.93852,2666.2,2665.7,0.029168]
[1646884239373,0.04526006,2666.1,2665.7,0.029168]
[1646884239976,0.04526006,2666.1,2665.6,0.029168]
[1646884242631,0.04526006,2666.1,2665.5,1.238582]
[1646884244033,0.04882223,2666.3,2665.5,1.238582]
[1646884244669,0.56304852,2666.4,2665.7,0.93842]
[1646884244870,0.56304852,2666.4,2665.9,0.9383252]
[1646884245268,0.56304852,2666.4,2666.0,0.06882542]
[1646884245669,0.04855148,2666.8,2666.0,1.00714542]
[1646884245874,0.00276787,2666.9,2666.1,0.08625857]
[1646884246174,0.00276787,2666.9,2666.2,0.08959066]
[1646884246374,0.05062153,2667.1,2666.2,0.08959066]
[1646884246577,0.05062153,2667.1,2666.4,0.9381671]
[1646884246775,0.00276833,2666.9,2666.4,1.2381671]
[1646884247674,0.05062153,2667.1,2666.4,2.1763171]
[1646884247877,0.00276848,2666.9,2666.4,2.1763171]
[1646884248720,0.05062153,2667.1,2666.4,2.1763171]
[1646884249125,0.00276848,2666.9,2666.4,2.1763171]
[1646884249921,0.05062153,2667.1,2666.4,2.1763171]
[1646884250322,0.00276846,2666.9,2666.4,2.1763171]
[1646884250522,0.00276846,2666.9,2666.4,0.3]
[1646884250721,0.00276846,2666.9,2666.3,2.1761826]
[1646884251131,0.05474075,2666.9,2666.3,0.3]
[1646884251327,0.05474075,2666.9,2666.1,0.3]
[1646884251526,0.05474075,2666.9,2666.0,0.36972132]
[1646884251527,0.05750916,2666.9,2666.0,0.36972132]
[1646884251984,0.05750916,2666.9,2666.2,0.9382618]
[1646884252168,0.05750916,2666.9,2666.2,1.2382618]
[1646884252368,0.05474075,2666.9,2666.2,1.2382618]
[1646884252570,0.05189465,2667.1,2666.2,1.2382618]
[1646884252770,0.00276836,2666.9,2666.2,1.2382618]
[1646884253571,0.05189465,2667.1,2666.2,1.2382618]
[1646884253971,0.00276836,2666.9,2666.3,0.9382]
[1646884254375,0.00276836,2666.9,2666.5,0.9381606]
[1646884254774,0.05189465,2667.1,2666.5,1.2381606]
[1646884254974,0.99009465,2667.1,2666.5,0.3]
[1646884255175,0.00276851,2666.9,2666.4,0.3]
[1646884256122,0.04603218,2667.0,2666.2,1.01901849]
[1646884256321,0.00276846,2666.9,2666.3,0.3]
[1646884256723,0.00276846,2666.9,2666.3,6.66340127]
[1646884257223,0.04192193,2667.2,2666.3,5.6762532]
[1646884257423,0.04192193,2667.2,2666.3,0.3]
[1646884257624,0.00276841,2666.9,2666.3,0.3]
[1646884257823,1.87688,2666.8,2666.0,0.3]
[1646884258322,1.87688,2666.8,2665.9,1.26877725]
[1646884258323,0.05367884,2666.7,2665.9,1.26877725]
[1646884259579,0.93841,2666.6,2665.9,1.26877725]
[1646884259778,0.93841,2666.6,2665.9,0.3]
[1646884260675,0.93841,2666.6,2665.9,0.29895356]
[1646884261582,0.93742976,2666.6,2665.9,1.23730756]
[1646884261783,0.05367884,2666.7,2666.0,4.43832]
[1646884262288,1.375,2666.9,2666.8,0.16103651]
[1646884262289,0.00276807,2666.9,2666.8,0.16103651]
[1646884262687,0.00276807,2666.9,2666.8,0.46103651]
[1646884262885,0.00276807,2666.9,2666.8,0.54849217]
[1646884263084,0.00276807,2666.9,2666.8,0.46103651]
[1646884263324,0.56358625,2667.8,2666.8,0.46103651]
[1646884263522,0.00276856,2667.0,2666.8,3.96103651]
[1646884263722,0.00276856,2667.0,2666.8,0.16103651]
[1646884264525,0.93811,2667.4,2666.8,0.16103651]
[1646884264830,0.00276857,2667.0,2666.8,1.09906651]
[1646884265628,0.93802,2667.7,2666.8,2.03705961]
[1646884265927,0.00276857,2667.0,2666.9,0.05]
[1646884266227,0.00276857,2667.0,2666.8,1.09902961]
[1646884266827,0.56358625,2667.8,2666.8,1.09902961]
[1646884267074,0.56358625,2667.8,2667.1,0.9379541]
[1646884267280,0.56358625,2667.8,2667.1,1.2379541]
[1646884268275,0.00276853,2667.6,2667.1,1.2379541]
[1646884269276,1.50157625,2667.8,2667.1,1.2379541]
[1646884269475,0.00276853,2667.5,2667.1,1.2379541]
[1646884270478,1.50157625,2667.8,2667.1,1.2379541]
[1646884270719,0.00276853,2667.4,2667.1,1.2379541]
[1646884271623,1.50157625,2667.8,2667.1,1.2379541]
[1646884271829,0.00276852,2667.4,2667.1,1.2379541]
[1646884272628,0.00276852,2667.4,2667.0,0.93796]
[1646884272826,1.87622,2667.7,2666.8,0.16103651]
[1646884273024,0.05250258,2667.6,2666.8,0.16103651]
[1646884273224,0.00276852,2667.4,2666.8,0.16103651]
[1646884273627,0.00276852,2667.4,2666.9,1.18206093]
[1646884274026,0.05250258,2667.6,2666.9,1.26183413]
[1646884274225,0.56358625,2667.8,2667.0,1.01152646]
[1646884274481,0.00276853,2667.2,2667.1,0.08791988]
[1646884274770,0.00276853,2667.2,2667.1,0.38791988]
[1646884275173,0.00276853,2667.2,2667.1,1.85544819]
[1646884275370,0.06940835,2667.7,2667.2,0.08663291]
[1646884275670,0.00276853,2667.3,2667.2,1.87574]
[1646884276077,0.00276853,2667.3,2667.2,2.17574]
[1646884276475,0.06940835,2667.7,2667.2,2.17574]
[1646884276777,0.06940835,2667.7,2667.3,0.3]
[1646884276778,0.00276852,2667.4,2667.3,0.3]
[1646884277175,0.00276852,2667.4,2666.8,3.92569896]
[1646884277375,0.00276852,2667.4,2666.9,1.85547672]
[1646884277576,1.00739835,2667.7,2666.9,0.3]
[1646884277975,0.00276853,2667.2,2666.9,0.3]
[1646884278429,0.00276853,2667.2,2667.0,0.93795]
[1646884278823,1.00739835,2667.7,2667.1,0.3]
[1646884279023,0.00276853,2667.2,2667.1,0.3]
[1646884280024,0.03394518,2667.4,2667.1,0.3]
[1646884280328,0.00276853,2667.3,2666.8,2.34978286]
[1646884280931,0.00276853,2667.3,2666.9,1.55552087]
[1646884281130,0.00276853,2667.3,2666.8,2.34978286]